bitfinex-derivatives/quotes_BTCF0:USTF0_20251202
["timestamp","ask_amount","ask_price","bid_price","bid_amount"]
[1764708193148,0.0909,90889.0,90888.0,0.6880394]
[1764708193351,0.0909,90889.0,90888.0,1.2047594]
[1764708193549,0.0909,90889.0,90888.0,1.2532794]
[1764708194354,0.43885,90889.0,90888.0,1.5655594]
[1764708194546,0.77948,90889.0,90888.0,1.5655594]
[1764708194744,0.43885,90889.0,90888.0,1.5655594]
[1764708194943,0.43885,90889.0,90888.0,1.6655594]
[1764708195150,0.0909,90889.0,90888.0,1.6655594]
[1764708196449,0.0909,90889.0,90888.0,1.6685594]
[1764708196848,0.0909,90889.0,90888.0,1.6695594]
[1764708197346,0.43885,90889.0,90888.0,1.55856]
[1764708198249,0.34795,90889.0,90888.0,1.55856]
[1764708198851,0.0909,90899.0,90898.0,0.6880382]
[1764708199039,0.3608,90903.0,90902.0,0.67704]
[1764708200150,0.3608,90903.0,90902.0,0.67804]
[1764708200543,0.3608,90903.0,90902.0,0.77804]
[1764708201447,0.3608,90903.0,90902.0,0.87904]
[1764708201643,0.3608,90903.0,90902.0,0.87804]
[1764708201856,0.3608,90903.0,90902.0,0.87904]
[1764708202151,0.3608,90903.0,90902.0,0.87804]
[1764708202356,0.3608,90903.0,90902.0,0.87904]
[1764708202749,0.3608,90903.0,90902.0,0.87804]
[1764708202951,0.3608,90903.0,90902.0,0.88004]
[1764708203139,0.3608,90903.0,90902.0,0.88104]
[1764708203542,0.3608,90903.0,90902.0,0.78104]
[1764708205150,0.00010669,90912.0,90902.0,0.78104]
[1764708205151,0.00010669,90912.0,90911.0,0.68922]
[1764708205452,0.00010669,90912.0,90911.0,1.20574]
[1764708206258,0.00010669,90912.0,90911.0,1.20674]
[1764708206454,0.00010669,90912.0,90911.0,1.40874]
[1764708206753,0.00010669,90912.0,90911.0,1.49606961]
[1764708207459,0.00010669,90912.0,90911.0,1.40874]
[1764708207757,1.05707,90922.0,90921.0,0.68922]
[1764708207957,1.05707,90922.0,90921.0,1.2057]
[1764708208956,1.05707,90922.0,90921.0,0.51648]
[1764708209961,1.05707,90922.0,90921.0,0.86158]
[1764708210149,1.05707,90922.0,90921.0,1.2067]
[1764708210355,0.69627,90922.0,90921.0,1.2067]
[1764708211159,0.35688,90922.0,90921.0,1.2067]
[1764708211360,0.78717,90932.0,90931.0,0.68922]
[1764708211556,0.78717,90932.0,90931.0,1.20562]
[1764708213264,0.78817,90932.0,90931.0,1.20562]
[1764708214349,0.78817,90932.0,90931.0,1.22102572]
[1764708218761,0.7991641,90932.0,90931.0,1.22102572]
[1764708219362,0.7991641,90932.0,90931.0,0.01540572]
[1764708219562,0.7991641,90932.0,90931.0,0.51624]
[1764708222760,0.7991641,90932.0,90931.0,1.19805]
[1764708227073,0.7991641,90932.0,90931.0,0.51624]
[1764708227670,0.65342,90917.0,90916.0,0.69668681]
[1764708227874,0.65342,90917.0,90916.0,1.21276681]
[1764708228070,0.65342,90917.0,90916.0,1.31276681]
[1764708228271,0.33154,90917.0,90916.0,1.42315681]
[1764708228576,1.01422,90922.0,90921.0,0.68181]
[1764708229665,1.01422,90922.0,90921.0,0.68281]
[1764708230082,1.0252153,90922.0,90921.0,0.001]
[1764708230466,1.0252153,90922.0,90921.0,0.002]
[1764708231078,0.6644159,90917.0,90916.0,0.01487681]
[1764708231276,0.6644164,90913.0,90912.0,0.51624506]
[1764708231979,0.6644164,90913.0,90912.0,0.5324639]
[1764708233768,0.65342,90913.0,90912.0,1.2142739]
[1764708235380,0.65342,90913.0,90912.0,1.2162739]
[1764708237279,0.65342,90913.0,90912.0,0.5344639]
[1764708239772,0.74432,90913.0,90912.0,1.2162739]
[1764708240178,0.74432,90913.0,90912.0,0.8881139]
[1764708240378,0.74432,90913.0,90912.0,1.2162739]
[1764708243587,0.0909,90913.0,90912.0,1.2162739]
[1764708243886,0.0909,90913.0,90912.0,1.3162739]
[1764708245081,0.0909,90913.0,90912.0,1.3272704]
[1764708245283,0.71572,90913.0,90912.0,1.2162739]
[1764708245473,0.71572,90913.0,90912.0,1.2272704]
[1764708245677,0.62482,90913.0,90912.0,1.2272704]
[1764708248190,0.66134,90920.0,90919.0,0.31532]
[1764708248388,0.3608,90920.0,90919.0,0.63312]
[1764708248887,0.30054,90920.0,90919.0,0.63312]
[1764708249085,0.5625,90937.0,90926.0,0.6441148]
[1764708249386,0.71572,90936.0,90935.0,0.6441137]
[1764708249598,0.71572,90936.0,90935.0,1.1599937]
[1764708250490,0.71772,90936.0,90935.0,1.1599937]
[1764708251377,0.0919,90936.0,90935.0,1.1599937]
[1764708251778,0.71672,90936.0,90935.0,1.1599937]
[1764708254092,0.0919,90936.0,90935.0,1.1599937]
[1764708254288,0.0919,90936.0,90935.0,1.2599937]
[1764708254589,0.001,90936.0,90935.0,1.2599937]
[1764708254790,0.001,90936.0,90935.0,1.6207937]
[1764708255387,0.001,90936.0,90935.0,1.7207937]
[1764708259194,0.3608,90946.0,90945.0,0.6441125]
[1764708259489,0.98562,90956.0,90955.0,0.63312]
[1764708259684,0.98562,90956.0,90955.0,1.1488]
[1764708259881,0.98562,90956.0,90955.0,1.159738]
[1764708260592,0.98962,90956.0,90955.0,1.159738]
[1764708261192,0.99062,90956.0,90955.0,1.159738]
[1764708263595,1.08152,90956.0,90955.0,1.159738]
[1764708265389,1.08152,90956.0,90955.0,0.526618]
[1764708265584,0.99062,90956.0,90955.0,0.526618]
[1764708266294,0.99062,90956.0,90955.0,0.808228]
[1764708266800,0.99062,90956.0,90955.0,0.010938]
[1764708266996,0.3658,90956.0,90946.0,0.68036471]
[1764708267304,0.77065,90937.0,90935.0,0.0109937]
[1764708267487,0.77065,90937.0,90936.0,0.51568497]
[1764708269189,0.77065,90937.0,90936.0,0.00016497]
[1764708269407,0.59992,90921.0,90916.0,0.08736004]
[1764708269592,0.96072,90921.0,90920.0,0.51562073]
[1764708270190,0.96072,90921.0,90920.0,0.79723073]
[1764708270395,0.96072,90921.0,90920.0,0.51662073]
[1764708270897,0.96072,90921.0,90920.0,1.08486073]
[1764708271404,0.96072,90921.0,90920.0,1.08586073]
[1764708275597,0.9717154,90921.0,90920.0,0.51762073]
[1764708275795,0.96072,90921.0,90920.0,0.51762073]
[1764708277596,0.96072,90921.0,90920.0,1.08795073]
[1764708281104,0.96072,90921.0,90920.0,1.09894623]
[1764708281404,1.05162,90921.0,90920.0,1.09894623]
[1764708282099,0.0909,90921.0,90920.0,1.09894623]
[1764708282505,0.63367,90921.0,90920.0,0.81141073]
[1764708283005,0.63367,90921.0,90920.0,1.09824073]
[1764708284304,0.63367,90921.0,90920.0,1.10923623]
[1764708284504,0.0909,90921.0,90920.0,1.37477623]
[1764708285007,0.04233145,90921.0,90920.0,1.37477623]
[1764708285196,0.00016464,90930.0,90929.0,0.0109944]
[1764708285400,0.00016464,90930.0,90929.0,1.4607644]
[1764708285801,0.90357,90944.0,90943.0,0.57357]
[1764708286106,0.90357,90944.0,90943.0,1.08897]
[1764708287507,1.07199,90944.0,90943.0,1.08897]
[1764708287711,1.07299,90944.0,90943.0,1.08897]
[1764708288097,0.90457,90944.0,90943.0,1.08897]
[1764708288512,0.90657,90944.0,90943.0,1.08897]
[1764708289013,1.07499,90944.0,90943.0,1.08897]
[1764708289192,0.90657,90944.0,90943.0,1.08897]
[1764708290100,1.07499,90944.0,90943.0,1.08897]
[1764708292407,0.90657,90944.0,90943.0,1.08897]
[1764708292804,0.003,90944.0,90943.0,1.08897]
[1764708293004,0.0109906,90962.0,90943.0,1.08897]
[1764708293005,0.00027483,90966.0,90943.0,1.08897]
[1764708293205,0.00027483,90966.0,90965.0,0.72208]
[1764708293409,0.00027483,90966.0,90965.0,1.23732]
[1764708293608,0.54304483,90966.0,90956.0,0.00016497]
[1764708293805,0.54277,90957.0,90956.0,0.73858665]
[1764708293998,0.54277,90957.0,90956.0,0.99069497]
[1764708294198,0.71119,90965.0,90964.0,0.57357]
[1764708294400,0.71119,90965.0,90964.0,1.08881]
[1764708294800,0.54277,90965.0,90964.0,1.08881]
[1764708295104,0.54277,90965.0,90964.0,0.51524]
[1764708295307,0.54277,90957.0,90956.0,0.00116497]
[1764708295606,0.90357,90957.0,90956.0,0.51636497]
[1764708295792,0.54277,90957.0,90956.0,1.08993497]
[1764708296000,0.54304483,90966.0,90965.0,0.57357]
[1764708296200,0.54304483,90966.0,90965.0,1.08877]
[1764708296902,0.26483483,90966.0,90965.0,1.08877]
[1764708297305,0.54304483,90966.0,90965.0,1.08877]
[1764708297507,0.54304483,90966.0,90965.0,0.80194]
[1764708297805,0.55403483,90966.0,90965.0,0.80194]
[1764708298409,0.55403483,90966.0,90965.0,0.80294]
[1764708298800,0.54304483,90966.0,90965.0,1.08977]
[1764708299104,0.54304483,90966.0,90965.0,0.5162]
[1764708299500,0.00027483,90966.0,90965.0,1.08977]
[1764708299701,0.54304483,90966.0,90965.0,1.08977]
[1764708301098,0.00027483,90966.0,90965.0,1.08977]
[1764708301915,0.54304483,90966.0,90965.0,1.08965]
[1764708302408,0.54304483,90966.0,90965.0,0.51604]
[1764708302609,0.54304483,90966.0,90965.0,0.001]
[1764708302813,0.54304483,90966.0,90965.0,0.51604]
[1764708303314,0.5350011,90957.0,90956.0,0.00016497]
[1764708303510,0.8958011,90957.0,90956.0,0.00016497]
[1764708304308,0.8958011,90957.0,90956.0,0.00216497]
[1764708304507,0.8958011,90957.0,90956.0,0.53077497]
[1764708304714,0.8958011,90957.0,90956.0,0.00216497]
[1764708304907,0.8958011,90957.0,90950.0,0.51504]
[1764708304908,0.5350018,90951.0,90950.0,0.51504]
[1764708305111,0.5350041,90932.0,90931.0,1.19850577]
[1764708305418,0.8958041,90932.0,90931.0,0.515]
[1764708305803,0.88481,90932.0,90931.0,1.04361]
[1764708306003,0.52401,90932.0,90931.0,1.04361]
[1764708306212,0.88481,90932.0,90931.0,1.04361]
[1764708307413,0.88481,90932.0,90931.0,1.04561]
[1764708309621,0.88481,90932.0,90931.0,1.04461]
[1764708309805,0.88481,90932.0,90931.0,1.04561]
[1764708310406,0.88481,90932.0,90931.0,1.04461]
[1764708310908,0.88497497,90941.0,90940.0,0.52861]
[1764708311106,0.88497497,90941.0,90940.0,1.04361]
[1764708312621,0.36096497,90941.0,90940.0,1.04361]
[1764708314111,0.36096497,90941.0,90940.0,1.0546031]
[1764708314304,0.36096497,90941.0,90940.0,1.04361]
[1764708314710,0.00016497,90941.0,90940.0,1.04361]
[1764708314916,0.00016497,90941.0,90940.0,1.24361]
[1764708315726,0.16104,90968.0,90940.0,1.24361]
[1764708315727,0.43428,90990.0,90989.0,0.3728]
[1764708315909,0.68505,90990.0,90989.0,0.88776]
[1764708317018,0.68905,90990.0,90989.0,0.01685301]
[1764708317225,0.68905,90990.0,90989.0,0.51492]
[1764708317815,0.68905,90990.0,90989.0,0.53177061]
[1764708318017,0.6960382,90981.0,90980.0,0.00016485]
[1764708318518,0.6960382,90981.0,90980.0,0.01676561]
[1764708318717,0.6960382,90981.0,90980.0,0.00016485]
[1764708319123,0.6980382,90981.0,90980.0,0.00016485]
[1764708320223,0.6980382,90981.0,90980.0,0.01679412]
[1764708320423,0.6980382,90981.0,90980.0,0.00016485]
[1764708321311,0.0109902,90965.0,90954.0,0.3608]
[1764708321517,0.52401,90963.0,90961.0,0.5258305]
[1764708322136,0.52401,90963.0,90962.0,0.75003275]
[1764708322328,0.52401,90963.0,90962.0,0.37725275]
[1764708323026,0.52401,90963.0,90962.0,0.56364275]
[1764708324924,0.52401,90963.0,90962.0,0.75003275]
[1764708325222,0.68505,90970.0,90969.0,0.37278]
[1764708325720,0.00016447,90972.0,90971.0,0.37278]
[1764708326529,0.52401,90971.0,90970.0,0.3608]
[1764708326729,0.52401,90971.0,90970.0,0.87556]
[1764708326931,0.52401,90971.0,90970.0,1.24834]
[1764708328623,0.52501,90971.0,90970.0,1.24834]
[1764708329830,0.52501,90971.0,90970.0,0.88754]
[1764708331127,0.001,90971.0,90970.0,0.98754]
[1764708332124,0.001,90971.0,90970.0,1.18750408]
[1764708332433,0.68505,90990.0,90989.0,0.37278]
[1764708332630,0.68505,90990.0,90989.0,0.88746]
[1764708333130,0.68505,90990.0,90989.0,0.51468]
[1764708333529,0.68605,90990.0,90989.0,0.51468]
[1764708333929,0.68605,90990.0,90989.0,0.689]
[1764708334128,0.68605,90990.0,90989.0,0.86332]
[1764708334326,0.68505,90990.0,90989.0,0.86332]
[1764708334727,0.004,90990.0,90989.0,0.86332]
[1764708335339,0.66833,90999.0,90998.0,0.33828]
[1764708335532,0.66833,90999.0,90998.0,0.85292]
[1764708336234,0.50756471,91006.0,91005.0,0.33828]
[1764708336427,0.66369,90999.0,90998.0,0.85292]
[1764708336731,0.50756471,91006.0,91005.0,0.33828]
[1764708337129,0.50729,91021.0,91005.0,0.3608]
[1764708337440,0.50729,91021.0,91020.0,0.3608]
[1764708337638,0.50729,91021.0,91020.0,1.0205]
[1764708337822,0.50729,91021.0,91020.0,0.85136]
[1764708338025,0.50729,91006.0,91005.0,0.52994]
[1764708338223,0.50729,91006.0,91005.0,1.0445]
[1764708338420,0.25395,91011.0,91010.0,0.3492646]
[1764708338823,0.1564,91017.0,91016.0,0.33828]
[1764708338824,0.66369,91017.0,91016.0,0.33828]
[1764708339023,0.66369,91017.0,91016.0,1.21364]
[1764708340120,0.001,91017.0,91016.0,1.21364]
[1764708340639,0.66469,91017.0,91016.0,1.21364]
[1764708340936,0.66769,91017.0,91016.0,1.21364]
[1764708341727,0.41435,91017.0,91016.0,1.21364]
[1764708342026,0.004,91017.0,91016.0,1.21364]
[1764708342229,0.004,91017.0,91016.0,1.31364]
[1764708342931,0.66769,91017.0,91016.0,0.69908]
[1764708343130,0.66769,91017.0,91016.0,1.21352]
[1764708344127,0.66769,91017.0,91016.0,0.3608]
[1764708344521,0.66769,91017.0,91016.0,1.21348]
[1764708344823,0.66769,91017.0,91016.0,0.3608]
[1764708345026,0.66769,91017.0,91016.0,0.8752]
[1764708345836,0.50729,91005.0,90998.0,0.3608]
[1764708346020,0.50729,91005.0,90991.0,0.08824594]
[1764708346224,0.50729,91005.0,90990.0,0.3608]
[1764708346225,0.50729,91005.0,91004.0,0.51452485]
[1764708346427,0.86809,91005.0,91004.0,0.51452485]
[1764708347336,0.86909,91005.0,91004.0,0.51452485]
[1764708347737,0.86909,91005.0,91004.0,0.52551025]
[1764708347932,0.50829,91005.0,91004.0,0.52551025]
[1764708349032,0.50829,91005.0,91004.0,0.86379025]
[1764708349238,0.001,91005.0,91004.0,0.86379025]
[1764708349621,0.50829,91005.0,91004.0,0.86379025]
[1764708349827,0.50829,91005.0,91004.0,0.52551025]
[1764708350022,0.50829,91005.0,91004.0,0.51452485]
[1764708350733,0.86909,91005.0,91004.0,0.51452485]
[1764708351624,0.50829,91005.0,91004.0,0.85280485]
[1764708352344,0.001,91005.0,91004.0,0.85280485]
[1764708352636,0.50729,91024.0,91023.0,0.3492631]
[1764708352833,0.25395,91024.0,91023.0,0.8635831]
[1764708353839,0.50729,91018.0,91017.0,0.3608]
[1764708354031,0.50729,91018.0,91017.0,1.04426]
[1764708354238,0.50729,91018.0,91017.0,1.0552438]
[1764708355233,0.50729,91005.0,91004.0,0.33844485]
[1764708355427,0.50729,91005.0,91004.0,0.85272485]
[1764708355827,0.50729,91005.0,91004.0,0.51444485]
[1764708356428,0.41035,91010.0,91009.0,0.33828]
[1764708356839,0.41035,91010.0,91009.0,0.3492648]
[1764708357031,0.51029,91018.0,91017.0,0.1801238]
[1764708357231,0.51029,91018.0,91017.0,0.8635038]
[1764708357432,0.50729,91018.0,91017.0,0.8635038]
[1764708357835,0.3608,91043.0,91019.0,0.33828]
[1764708358025,0.66369,91020.0,91019.0,0.33828]
[1764708358740,0.41035,91020.0,91019.0,0.33828]
[1764708358931,0.1574,91020.0,91019.0,0.33828]
[1764708359131,0.66469,91020.0,91019.0,0.33828]
[1764708359642,0.66769,91020.0,91019.0,0.33828]
[1764708361032,0.1604,91020.0,91019.0,0.43828]
[1764708361340,0.50729,91011.0,91010.0,0.69908]
[1764708361534,0.50729,91005.0,91003.0,0.0109855]
[1764708361734,0.50729,91005.0,91004.0,0.51436485]
[1764708361937,0.50729,91005.0,91004.0,0.85264485]
[1764708362842,0.50829,91005.0,91004.0,0.85264485]
[1764708363149,0.001,91005.0,91004.0,0.95264485]
[1764708364935,0.47165,91005.0,91004.0,0.33844485]
[1764708365136,0.47165,91005.0,91004.0,0.85264485]
[1764708365341,0.001,91005.0,91004.0,0.85264485]
[1764708367245,0.001,91005.0,91004.0,0.95264485]
[1764708367546,0.47165,91005.0,91004.0,0.85260485]
[1764708370045,0.47165,91005.0,91004.0,0.00016485]
[1764708370248,0.47065,90986.0,90982.0,0.3608]
[1764708370450,0.47065,90986.0,90985.0,0.51422866]
[1764708371350,0.47065,90986.0,90985.0,0.61276866]
[1764708371756,0.47065,90986.0,90985.0,0.71030866]
[1764708372053,0.22833,90986.0,90985.0,0.71230866]
[1764708372247,0.38627,90990.0,90989.0,0.19508]
[1764708372449,0.62859,90990.0,90989.0,0.19508]
[1764708373748,0.00016485,90995.0,90994.0,0.2060666]
[1764708373948,0.3608,91013.0,91009.0,0.2060648]
[1764708374151,0.62705,91010.0,91009.0,0.51412]
[1764708375545,0.62905,91010.0,91009.0,0.51412]
[1764708375755,0.62905,91010.0,91009.0,0.7092]
[1764708376140,0.62705,91010.0,91009.0,0.7092]
[1764708377959,0.62705,91010.0,91009.0,0.7201848]
[1764708378547,0.62705,91010.0,91009.0,0.51412]
[1764708379258,0.62705,91010.0,91009.0,0.7092]
[1764708382152,0.47065,91024.0,91023.0,0.19508]
[1764708382352,0.47065,91024.0,91023.0,0.70912]
[1764708383663,0.47065,91024.0,91023.0,0.80912]
[1764708383859,0.47165,91024.0,91023.0,0.80912]
[1764708384067,0.47165,91024.0,91023.0,0.70912]
[1764708384361,0.47165,91024.0,91023.0,0.51404]
[1764708384567,0.47365,91024.0,91023.0,0.51404]
[1764708386163,0.47065,91019.0,91018.0,0.3608]
[1764708386468,0.47065,91019.0,90987.0,0.0109874]
[1764708386469,0.47065,91005.0,91000.0,0.00016485]
[1764708386667,0.47065,91005.0,91004.0,0.8748]
[1764708386855,0.47065,91005.0,91000.0,0.00016485]
[1764708386856,0.4816357,91001.0,91000.0,0.00016485]
[1764708387164,0.4816357,91001.0,90985.0,0.43162866]
[1764708387165,0.47065,90986.0,90985.0,0.43162866]
[1764708387355,0.47065,90986.0,90985.0,0.52916866]
[1764708387552,0.47065,90986.0,90985.0,0.43162866]
[1764708388062,0.47065,90986.0,90985.0,0.52916866]
[1764708388365,0.47065,90986.0,90985.0,0.62670866]
[1764708388764,0.47065,90986.0,90985.0,0.62970866]
[1764708389070,0.47065,90986.0,90985.0,0.53316866]
[1764708389672,0.47065,90986.0,90985.0,0.53216866]
[1764708389964,0.47065,90986.0,90985.0,0.53316866]
[1764708390165,0.47065,90986.0,90985.0,0.43562866]
[1764708390857,0.47065,90986.0,90985.0,0.53216866]
[1764708391052,0.47065,90986.0,90985.0,0.62970866]
[1764708391767,0.4816376,90986.0,90985.0,0.43462866]
[1764708391969,0.4816376,90986.0,90985.0,0.00310866]
[1764708392266,0.4816376,90986.0,90985.0,0.51710866]
[1764708392454,0.47065,90986.0,90985.0,0.51710866]
[1764708392657,0.4816376,90986.0,90985.0,0.51710866]
[1764708393261,0.47065,90986.0,90985.0,0.51710866]
[1764708393969,0.47065,90986.0,90985.0,0.51610866]
[1764708394475,0.47065,90986.0,90985.0,0.51510866]
[1764708395470,0.47065,90986.0,90985.0,0.51610866]
[1764708398068,0.0109874,90988.0,90976.0,0.00016485]
[1764708398069,0.4435286,90977.0,90976.0,0.00016485]
[1764708398272,0.4435299,90967.0,90958.0,0.09714142]
[1764708398475,0.8043299,90967.0,90960.0,0.514]
[1764708398670,0.8043299,90967.0,90958.0,0.08615052]
[1764708398874,0.4435314,90954.0,90953.0,0.3608]
[1764708399072,0.43254,90953.0,90952.0,0.00797]
[1764708399574,0.33254,90953.0,90952.0,0.0253744]
[1764708399768,0.33254,90953.0,90952.0,0.00797]
[1764708401477,0.33254,90953.0,90952.0,0.0189617]
[1764708401971,0.33254,90953.0,90952.0,0.00797]
[1764708403078,0.43254,90944.0,90943.0,0.01784557]
[1764708403274,0.43254,90944.0,90943.0,0.02883837]
[1764708404077,0.43254,90944.0,90943.0,0.01784557]
[1764708404379,0.43254,90944.0,90943.0,0.01884557]
[1764708405172,0.43254,90944.0,90943.0,0.01984557]
[1764708405680,0.43254,90944.0,90943.0,0.00891963]
[1764708408281,0.43254,90944.0,90943.0,0.01991243]
[1764708409684,0.43254,90944.0,90943.0,0.45730243]
[1764708411277,0.3608,90945.0,90944.0,0.43739]
[1764708411472,9.9e-05,90954.0,90951.0,0.0109918]
[1764708411674,0.43254,90952.0,90951.0,0.8091818]
[1764708411882,9.9e-05,90954.0,90953.0,0.43739]
[1764708412087,0.432639,90954.0,90953.0,0.43739]
[1764708412389,0.43254,90949.0,90948.0,0.4483821]
[1764708413383,0.12949,90950.0,90945.0,0.0109925]
[1764708413685,9.9e-05,90954.0,90953.0,0.43739]
[1764708414188,0.00016485,90962.0,90961.0,0.4483806]
[1764708414376,0.21282,90953.0,90952.0,1.08086211]
[1764708414580,0.21282,90953.0,90952.0,1.32346655]
[1764708415084,0.00016485,90962.0,90961.0,0.43739]
[1764708415284,0.00016485,90962.0,90961.0,0.79819]
[1764708415784,0.92283,90980.0,90979.0,0.2177]
[1764708415987,0.43254,90974.0,90973.0,0.73182]
[1764708416188,0.43254,90974.0,90973.0,0.7428091]
[1764708416390,0.21282,90974.0,90973.0,0.9624991]
[1764708417384,0.21282,90974.0,90973.0,0.9634991]
[1764708418274,0.21282,90980.0,90978.0,0.0109885]
[1764708418479,0.00016485,90983.0,90982.0,0.43739]
[1764708420780,0.79334,91003.0,91002.0,0.43739]
[1764708422889,0.43254,91003.0,91002.0,0.43739]
[1764708423091,0.12949,91010.0,91005.0,0.43623]
[1764708423485,0.00016485,91012.0,91005.0,0.43623]
[1764708423695,0.00016485,91012.0,91005.0,0.79703]
[1764708424184,0.00016485,91012.0,91011.0,0.4472145]
[1764708424386,0.58271,91033.0,91032.0,0.43623]
[1764708424688,0.12949,91040.0,91032.0,0.43623]
[1764708424689,0.57302,91040.0,91039.0,0.43623]
[1764708424986,0.12244,91050.0,91039.0,0.43623]
[1764708424987,0.12244,91050.0,91039.0,0.21577]
[1764708425191,0.44380459,91046.0,91045.0,0.22046]
[1764708425388,0.44353,91038.0,91036.0,0.00016476]
[1764708425595,0.44353,91037.0,91036.0,0.00016476]
[1764708426091,0.44353,91037.0,91036.0,0.01639075]
[1764708426291,0.44353,91037.0,91036.0,0.00016476]
[1764708427286,0.44653,91037.0,91036.0,0.00016476]
[1764708427793,0.44653,91037.0,91036.0,0.23642756]
[1764708427990,0.4575114,91037.0,91036.0,0.23642756]
[1764708428295,0.44753,91037.0,91036.0,0.45219756]
[1764708428792,0.22591,91037.0,91036.0,0.45219756]
[1764708429187,0.44753,91037.0,91036.0,0.45219756]
[1764708429698,0.004,91037.0,91036.0,0.45219756]
[1764708431190,0.004,91037.0,91036.0,0.56948756]
[1764708431403,0.004,91037.0,91036.0,1.03028756]
[1764708431588,0.004,91037.0,91036.0,0.93028756]
[1764708432789,0.004,91037.0,91036.0,1.03028756]
[1764708433288,0.00027459,91046.0,91045.0,0.0109804]
[1764708433490,0.00027459,91046.0,91045.0,1.3216904]
[1764708434391,0.00127459,91046.0,91045.0,1.4216904]
[1764708434800,0.22191,91060.0,91059.0,0.4472087]
[1764708435002,0.22191,91060.0,91059.0,0.9608487]
[1764708435304,0.22191,91060.0,91059.0,0.94987]
[1764708435486,0.44353,91068.0,91067.0,0.43623]
[1764708436200,0.3608,91071.0,91070.0,0.43623]
[1764708436398,0.92677,91080.0,91079.0,0.43623]
[1764708436695,0.56597,91080.0,91079.0,0.43623]
[1764708437199,0.22218447,91086.0,91085.0,0.43623]
[1764708437388,0.44380447,91086.0,91085.0,0.94983]
[1764708438088,0.44353,91078.0,91077.0,0.58126]
[1764708438491,0.44353,91078.0,91077.0,1.31059]
[1764708439003,0.44353,91078.0,91077.0,0.58126]
[1764708439297,0.44353,91078.0,91077.0,1.09478]
[1764708439486,0.44480447,91086.0,91085.0,0.43623]
[1764708440094,0.44380447,91086.0,91085.0,0.22046]
[1764708440404,0.44353,91081.0,91080.0,0.4472061]
[1764708440801,0.22191,91081.0,91080.0,0.4472061]
[1764708441000,0.22318447,91086.0,91085.0,0.4472056]
[1764708441203,0.44480447,91086.0,91085.0,0.4472056]
[1764708441603,0.44353,91080.0,91079.0,0.43623]
[1764708441903,0.56597,91080.0,91079.0,0.43623]
[1764708442303,0.44380447,91086.0,91085.0,0.43623]
[1764708442506,0.44380447,91086.0,91085.0,0.4472056]
[1764708442710,0.44380447,91086.0,91077.0,0.87432]
[1764708442906,0.44380447,91086.0,91079.0,0.0109763]
[1764708442907,0.00027447,91086.0,91079.0,0.0109763]
[1764708443203,0.44353,91078.0,91077.0,0.58126]
[1764708443410,0.44353,91078.0,91077.0,1.09466]
[1764708444002,0.44353,91078.0,91077.0,1.1056366]
[1764708444705,0.44353,91078.0,91077.0,1.09466]
[1764708444905,0.44353,91071.0,91070.0,0.00016476]
[1764708445213,0.80433,91071.0,91070.0,0.00016476]
[1764708445706,0.80433,91071.0,91070.0,0.51352476]
[1764708446310,0.80433,91071.0,91070.0,0.51452476]
[1764708447506,0.12244,91080.0,91070.0,0.51452476]
[1764708447507,0.44353,91080.0,91079.0,0.4472063]
[1764708447709,0.22191,91080.0,91079.0,0.4472063]
[1764708448009,0.58271,91081.0,91080.0,0.43623]
[1764708449211,0.22218447,91086.0,91085.0,0.4472056]
[1764708449408,0.44380447,91086.0,91085.0,0.94951]
[1764708449708,0.00027447,91086.0,91075.0,0.3608]
[1764708449895,0.44353,91071.0,91070.0,0.23160216]
[1764708450097,0.44353,91071.0,91070.0,0.74488216]
[1764708450306,0.44353,91071.0,91070.0,0.73390476]
[1764708450508,0.44353,91071.0,91070.0,0.74488216]
[1764708450705,0.44353,91071.0,91070.0,0.96065216]
[1764708451105,0.44353,91071.0,91070.0,0.51344476]
[1764708451499,0.44353,91071.0,91070.0,0.51444476]
[1764708451817,0.44353,91071.0,91070.0,0.51440476]
[1764708453097,0.00027447,91086.0,91085.0,0.38853]
[1764708453399,0.12511,91102.0,91085.0,0.5242155]
[1764708453597,0.38715,91086.0,91085.0,0.9127456]
[1764708453809,0.18581,91090.0,91089.0,0.2053451]
[1764708454002,0.38715,91090.0,91081.0,0.010976]
[1764708454311,0.38715,91083.0,91082.0,0.90177]
[1764708454511,0.12511,91091.0,91076.0,0.38853]
[1764708454512,0.38715,91077.0,91076.0,0.38853]
[1764708454812,0.38715,91077.0,91076.0,0.90177]
[1764708455023,0.38715,91077.0,91070.0,0.00016476]
[1764708455204,0.38715,91071.0,91070.0,0.38869476]
[1764708455405,0.38715,91071.0,91070.0,0.45589476]
[1764708456114,0.38715,91071.0,91070.0,0.81669476]
[1764708456706,0.18581,91071.0,91070.0,0.81669476]
[1764708456912,0.31092,91080.0,91079.0,0.19437]
[1764708457221,0.51226,91080.0,91079.0,0.19437]
[1764708457408,0.38715,91071.0,91070.0,0.81769476]
[1764708457807,0.38715,91071.0,91070.0,0.81869476]
[1764708458513,0.38715,91071.0,91070.0,0.81669476]
[1764708458824,0.18581,91071.0,91070.0,0.81669476]
[1764708459117,0.12511,91080.0,91070.0,0.42816476]
[1764708459614,0.39343,91078.0,91077.0,0.0109766]
[1764708459810,0.39343,91078.0,91077.0,0.3980466]
[1764708460007,0.39343,91085.0,91084.0,0.3980457]
[1764708460211,0.51854,91091.0,91090.0,0.38707]
[1764708460409,0.50976,91080.0,91079.0,0.54603]
[1764708460613,0.50976,91080.0,91079.0,1.05919]
[1764708461116,0.39343,91080.0,91079.0,1.05919]
[1764708461509,0.39343,91080.0,91079.0,1.0701663]
[1764708462119,0.19198,91080.0,91079.0,1.0711663]
[1764708462706,0.12511,91091.0,91082.0,0.0109759]
[1764708462916,0.51854,91091.0,91079.0,0.87496]
[1764708463111,0.51854,91091.0,91079.0,0.97496]
[1764708463308,0.51854,91091.0,91079.0,0.87496]
[1764708463508,0.51854,91091.0,91090.0,0.38707]
[1764708463711,0.75423,91098.0,91097.0,0.38707]
[1764708464818,0.19198,91098.0,91097.0,0.38707]
[1764708465121,0.39343,91098.0,91097.0,0.18523]